Cogmind - Beta 15 @@@ ROGUE MODE // 2025.08.14 @ 16:00:01 Player: TapeIsSticky Result: Self-destructed Performance ------------- Evolutions (3) 1500 Regions Visited (9) 1800 Robots Destroyed (164) 820 Value Destroyed (4732) 4732 Prototype IDs (36) 720 Alien Tech Used (0) 0 Bonus (1040) 1040 TOTAL SCORE: 10612 Bonus ------- High Alert Combat Kills 286 Follower Combat Kills 254 Entered Garrisons 200 Aligned with FarCom 300 Cogmind --------- Core Integrity 692/700 Matter 272/300 Energy 265/265 System Corruption 0% Temperature Cool (16) Movement Treading (320) Ox2 Location -7/Factory Parts ------- > --- POWER (1) -------- Improved Ion Engine > --- PROPULSION (4) --- Light Treads Light Treads Flexi-carbon Leg Gravmag System > --- UTILITY (5) ------ Huge Storage Unit Advanced Targeting Computer Reactive Plating > --- WEAPON (3) ------- Minigun High-powered Shotgun Bore Cannon > --- INVENTORY (25) --- Improved Heat Sink Huge Storage Unit Large Matter Pod (150) High-capacity Matter Pod (200) Experimental Sensor Array Seismic Detector Experimental Targeting Computer High-powered Tractor Beam Heavy EM Shotgun Heavy Particle Cannon Firepult Minigun 8R-AWN's Boregun AWS/Autocannon Rocket Launcher Mini Grenade Launcher Field Lobotomy Kit (5) Peak State ------------ > --- POWER ------------ (None) > --- PROPULSION ------- Light Treads Improved Treads Advanced Treads > --- UTILITY ---------- Huge Storage Unit Advanced Targeting Computer Hardlight Generator > --- WEAPON ----------- AWS/Autocannon > --- INVENTORY -------- Improved Ion Engine Heavy Deuterium Engine Improved Heat Sink Huge Storage Unit High-capacity Matter Pod Experimental Sensor Array Seismic Detector Experimental Targeting Computer Reactive Plating High-powered Tractor Beam Heavy EM Shotgun Heavy Particle Cannon Firepult Minigun High-powered Shotgun High-powered Shotgun 8R-AWN's Boregun Rocket Launcher Mini Grenade Launcher Field Lobotomy Kit [Rating: 52] Favorites ----------- Power Cooled Ion Engine Engine Cooled Ion Engine Propulsion Light Treads Treads Light Treads Leg Flexi-carbon Leg Wheel Wheel Hover Unit Gravmag System Utility Large Storage Unit Device Seismic Detector Storage Large Storage Unit Processor Advanced Targeting Computer Protection Hardened Light Armor Plating Weapon Heavy Assault Rifle Energy Gun Medium Laser Energy Cannon Heavy Particle Cannon Ballistic Gun Heavy Assault Rifle Ballistic Cannon Improved Light Cannon Launcher Mini Grenade Launcher Build | -11 -10 -10 -9 -9 -9 -8 -8 -8 -7 ------- Run | Yrd Mat Min Mat Min Exi Min Mat Gar Fac Slots Evolved 6 | . . . 2 . . . 2 . 2 Power . | . . . . . . . . . . Propulsion 2 | . . . 1 . . . 1 . . Utility 3 | . . . . . . . 1 . 2 Weapon 1 | . . . 1 . . . . . . Parts Attached 88 | 8 10 . 15 5 19 4 12 15 . Power 7 | 1 1 . 1 . 2 . 1 1 . Engine 7 | 1 1 . 1 . 2 . 1 1 . Core . | . . . . . . . . . . Reactor . | . . . . . . . . . . Propulsion 27 | 2 3 . 4 1 5 1 2 9 . Treads 19 | 2 2 . 4 1 4 1 2 3 . Leg 3 | . . . . . 1 . . 2 . Wheel 1 | . 1 . . . . . . . . Hover 4 | . . . . . . . . 4 . Flight . | . . . . . . . . . . Utility 20 | 2 1 . 2 1 6 3 4 1 . Device 8 | 1 . . . . 5 1 1 . . Storage 4 | 1 1 . . . . 1 1 . . Processor 3 | . . . . 1 . . 2 . . Hackware . | . . . . . . . . . . Protection 5 | . . . 2 . 1 1 . 1 . Artifact . | . . . . . . . . . . Weapon 34 | 3 5 . 8 3 6 . 5 4 . Energy Gun 3 | 1 . . 1 . . . 1 . . Energy Cannon 1 | . . . . . . . 1 . . Ballistic Gun 20 | 2 . . 4 3 6 . 3 2 . Ballistic Cannon 7 | . 4 . 1 . . . . 2 . Launcher 3 | . 1 . 2 . . . . . . Special Weapon . | . . . . . . . . . . Impact Weapon . | . . . . . . . . . . Slashing Weapon . | . . . . . . . . . . Piercing Weapon . | . . . . . . . . . . Special Melee Weapon . | . . . . . . . . . . Unidentified Prototypes 11 | . . . 3 . 7 . 1 . . Parts Lost 24 | . 3 . . . 6 1 4 10 . Power 3 | . 1 . . . 1 . . 1 . Propulsion 11 | . 1 . . . 2 . 2 6 . Utility 2 | . . . . . . . 1 1 . Weapon 8 | . 1 . . . 3 1 1 2 . Highest Loss Streak 7 | . 2 . . . 6 1 1 7 . To Critical Strikes 5 | . . . . . 5 . . . . Average Backups 13 | 2 11 15 14 15 7 13 17 17 17 Power . | . . . . . . 1 1 . . Propulsion 2 | . 2 4 4 4 1 2 1 . . Utility 4 | . 3 5 4 3 1 6 7 7 8 Weapon 5 | . 4 6 5 7 3 3 6 8 8 Tool/Special . | . . . . . . . . . . Unused Backups 27 | . 2 . 9 2 7 . . . 7 Power 4 | . 1 . . . 3 . . . . Propulsion 3 | . . . 2 . 1 . . . . Utility 13 | . 1 . 3 2 3 . . . 4 Weapon 6 | . . . 4 . . . . . 2 Tool/Special 1 | . . . . . . . . . 1 Average Slot Usage (%) 94 | . 96 100 99 100 79 100 99 97 84 Engine 10 | . 10 14 11 11 9 11 9 8 7 Treads 29 | . 26 28 32 33 32 33 35 18 15 Hover 2 | . . . . . . . . 15 7 Device 4 | . 14 14 5 . 1 . 2 2 . Storage 9 | . 14 14 11 11 4 11 9 9 7 Processor 4 | . . . . 9 8 . 9 9 7 Protection 5 | . . . 5 1 6 11 6 6 7 Ballistic Gun 16 | . 1 . 15 33 14 33 20 24 15 Ballistic Cannon 8 | . 25 28 17 . . . . 1 7 Peak Build Rating 52 | 7 11 11 19 19 32 38 41 52 41 Average Rating 22 | 5 9 11 16 18 17 35 37 40 41 On Entrance 21 | . 7 11 11 18 19 30 38 39 41 Naked Turns . | . . . . . . . . . . Heaviest Build 145 | 13 34 34 45 44 38 101 107 145 112 Greatest Support 88 | 40 40 40 63 63 78 69 88 88 40 Greatest Overweight (x) 36 | . 2 . . . 9 1 1 36 2 Average Overweight (x) . | . . . . . . . 1 2 2 Largest Inventory Capacity 25 | 8 15 15 15 15 15 25 25 25 25 Average Capacity 16 | 7 12 15 15 15 9 21 25 25 25 Most Carried 25 | 4 15 15 15 15 15 20 25 25 20 Average Carried 14 | 2 11 15 14 14 8 17 20 20 20 Final Capacity 25 | 8 15 15 15 15 15 25 25 25 25 Final Carried 23 | 4 15 15 15 15 15 20 23 20 20 Class Distribution -------------------- 34% | Mutant 32% | Gunner 13% | Tank 13% | Scavenger-Gunner 6% | Scavenger-Tank Dominant Class ---------------- Mutant | -10/Materials Mutant | -10/Mines Gunner | -9/Materials Gunner | -9/Mines Mutant | -9/Exiles Tank | -8/Mines Gunner | -8/Materials Scavenger-Gunner | -8/Garrison Scavenger-Gunner | -7/Factory Resources | -11 -10 -10 -9 -9 -9 -8 -8 -8 -7 ----------- Run | Yrd Mat Min Mat Min Exi Min Mat Gar Fac Matter Collected 5605 | 334 855 10 1217 289 1357 291 444 808 . Remotely . | . . . . . . . . . . Salvage Created 4906 | 196 664 . 1313 518 364 437 611 803 . Parts 305 | 23 34 . 87 22 52 12 20 55 . Haulers Intercepted 8 | . 2 . 6 . . . . . . Recyclers Shooed 5 | . 4 . 1 . . . . . . Parts Field Recycled . | . . . . . . . . . . Retrieved Matter . | . . . . . . . . . . Parts Self-Destructed . | . . . . . . . . . . Prevented . | . . . . . . . . . . Kills | -11 -10 -10 -9 -9 -9 -8 -8 -8 -7 ------- Run | Yrd Mat Min Mat Min Exi Min Mat Gar Fac Combat Hostiles Destroyed 108 | . 15 . 32 12 6 6 10 27 . Melee 2 | . . . . . . . 2 . . Guns 56 | . . . 11 12 1 6 4 22 . Cannons 34 | . 12 . 16 . . . 1 5 . AOE 16 | . 3 . 5 . 5 . 3 . . Classes Destroyed 17 | 3 6 . 2 . 3 . 1 2 . Worker 8 | 1 4 . 2 . . 1 . . . Builder 2 | . 2 . . . . . . . . Tunneler 8 | 6 . . 1 . . 1 . . . Hauler 8 | . 2 . 6 . . . . . . Recycler 13 | 1 6 . 2 1 . 1 2 . . Operator 3 | . 1 . 2 . . . . . . Turret 1 | . . . . . 1 . . . . Watcher 9 | . 3 . 4 . . . 2 . . Swarmer 26 | . 6 . 8 3 . . . 9 . Cutter 3 | . . . . . . . . 3 . Grunt 56 | . 9 . 16 9 . 5 8 9 . Brawler 2 | . . . 1 . . 1 . . . Sentry 11 | . . . 7 . . . 1 3 . Hunter 1 | . . . . . . . 1 . . Programmer 3 | . . . . . . . . 3 . Zionite 7 | . . . . . 7 . . . . Assembled 5 | . . . . . 5 . . . . Best Kill Streak 11 | 6 7 . 5 3 5 4 3 11 . Combat Bots Only 11 | . 4 . 4 3 5 3 3 11 . Max Kills in Single Turn 3 | 1 3 . 3 2 3 2 3 2 . Gunslinging . | . . . . . . . . . . Exploded 3 | . 2 . 2 . 3 . 3 . . Melee 1 | . . . . . . . 1 . . Uniques/NPCs Destroyed 5 | . . . . . 4 1 . . . 8R-AWN (-9/Exiles) EX-BIN (-9/Exiles) EX-DEC (-9/Exiles) EX-HEX (-9/Exiles) 12-ASH (-8/Mines) Combat | -11 -10 -10 -9 -9 -9 -8 -8 -8 -7 -------- Run | Yrd Mat Min Mat Min Exi Min Mat Gar Fac Hostile Shots Fired 506 | . 67 . 74 33 63 39 69 152 9 Missed 124 | . 14 . 21 7 18 9 17 34 4 Hits 382 | . 53 . 53 26 45 30 52 118 5 Melee 10 | . . . . . . 4 . 6 . Projectile 372 | . 53 . 53 26 45 26 52 112 5 Critical Strikes 46 | . 1 . . 1 27 3 4 10 . Damage Taken 5411 | . 670 . 766 315 977 536 833 1280 34 Core 737 | . 117 . 121 13 184 32 107 155 8 Absorbed by Shields 336 | . . . . . . . 124 212 . Ignored by Resistances 26 | . . . . . . . . 20 6 Regen/Repaired (Parts) 143 | . 55 . 88 . . . . . . Core Remaining (%) 54 | 100 . 53 . . . 12 . 52 . Volleys Fired 389 | 18 81 . 76 23 81 21 31 57 1 Largest 3 | 2 2 . 3 3 3 3 3 3 3 Hottest 126 | 70 66 . 99 69 69 76 126 76 98 Shots Fired 986 | 36 156 . 220 70 191 64 82 164 3 Gun 651 | 36 . . 87 70 171 64 67 154 2 Cannon 302 | . 150 . 128 . . . 13 10 1 Launcher 33 | . 6 . 5 . 20 . 2 . . Special . | . . . . . . . . . . Kinetic 912 | 18 150 . 215 70 171 64 57 164 3 Thermal 31 | 18 . . . . . . 13 . . Explosive 33 | . 6 . 5 . 20 . 2 . . Electromagnetic 10 | . . . . . . . 10 . . Robot Hit Streak 21 | 9 9 . 21 14 18 16 14 12 . Robot Miss Streak 6 | 2 3 . 4 5 5 2 4 6 . Penetration Max 1 | . . . . . . . . 1 . Secondary Targets 8 | . . . . 3 . 1 . 4 . Max Gunslinging Chain 1 | . . . . 1 . 1 . 1 . Autonomous 9 | . . . . . . . . 9 . Shots Hit Robots 616 | 23 93 . 124 47 127 42 55 105 . Core Hits 263 | 9 38 . 60 22 46 18 23 47 . Critical Kills 3 | . . . 1 1 1 . . . . Critical Parts Destroyed 1 | . . . . . 1 . . . . Critical Strikes 14 | 2 4 . 4 1 2 . . 1 . Burn 2 | 2 . . . . . . . . . Destroy 4 | . . . 1 1 2 . . . . Blast 8 | . 4 . 3 . . . . 1 . Melee Attacks . | . . . . . . . . . . Impact . | . . . . . . . . . . Slashing . | . . . . . . . . . . Piercing . | . . . . . . . . . . Sneak Attacks . | . . . . . . . . . . Combat Hostiles . | . . . . . . . . . . Follow-up Attacks . | . . . . . . . . . . Damage Inflicted 13400 | 287 2293 . 2896 758 2506 784 1279 2597 . Guns 7115 | 287 . . 899 740 1890 741 755 1803 . Cannons 4438 | . 1926 . 1543 . . . 175 794 . Explosions 1594 | . 303 . 357 . 616 . 318 . . Melee . | . . . . . . . . . . Ramming 253 | . 64 . 97 18 . 43 31 . . Kinetic 11009 | 127 1926 . 2442 740 1890 741 546 2597 . Thermal 389 | 160 . . . . . . 229 . . Explosive 1540 | . 303 . 357 . 616 . 264 . . Electromagnetic 209 | . . . . . . . 209 . . Impact . | . . . . . . . . . . Slashing . | . . . . . . . . . . Piercing . | . . . . . . . . . . Highest Corruption 5 | . . . 2 2 2 2 . 5 . Average Corruption 2 | . . . 1 2 1 2 . 4 . Corruption Purged 2 | . . . . . 2 . . . . Corruption Blocked . | . . . . . . . . . . Effects 113 | . . . 6 11 40 14 . 42 . Message Errors 27 | . . . . 4 10 3 . 10 . Matter Fused 28 | . . . 3 1 13 4 . 7 . Heat Flow Errors 11 | . . . 1 1 5 1 . 3 . Energy Discharges 17 | . . . 1 3 4 1 . 8 . Parts Fused 1 | . . . . . 1 . . . . Data Loss (minor) 11 | . . . . 1 2 1 . 7 . Data Loss (major) 7 | . . . . . 4 1 . 2 . Misfires 7 | . . . 1 1 . 2 . 3 . Alerts 2 | . . . . . 1 . . 1 . Weapon Failures 2 | . . . . . . 1 . 1 . Overload Shots . | . . . . . . . . . . Overflow Damage 103 | . 27 . 8 . 18 . 14 36 . Projectiles 63 | . 27 . . . . . . 36 . Explosions 40 | . . . 8 . 18 . 14 . . Melee . | . . . . . . . . . . Knockbacks 37 | . 32 . 5 . . . . . . Impact . | . . . . . . . . . . Kinetic 35 | . 30 . 5 . . . . . . Secondary 2 | . 2 . . . . . . . . Self-Inflicted Damage 320 | . . . 91 . 96 . 133 . . Shots 8 | . . . 3 . 2 . 3 . . Rammed 38 | . 14 . 14 2 . 5 3 . . Targets Rammed 44 | . 15 . 15 2 . 5 7 . . Kicked . | . . . . . . . . . . Crushed 6 | . 1 . 1 . . . 4 . . Highest Temperature 336 | 108 108 . 238 169 266 322 336 265 39 Average Temperature 54 | 41 37 . 37 26 60 121 90 48 23 Received Heat Transfer 1441 | . 336 . 198 156 . 252 216 271 12 Effects 2 | . . . . . 1 . 1 . . Interference 1 | . . . . . 1 . . . . Matter Decay 1 | . . . . . . . 1 . . Siege Activations . | . . . . . . . . . . Martial Activations . | . . . . . . . . . . Shielding Activations . | . . . . . . . . . . Robots Disrupted . | . . . . . . . . . . Combat Hostiles . | . . . . . . . . . . Robots Corrupted . | . . . . . . . . . . Combat Hostiles . | . . . . . . . . . . Parts Fried 2 | . . . . . . . 2 . . Impact Corruptions . | . . . . . . . . . . Robots Melted . | . . . . . . . . . . Combat Hostiles . | . . . . . . . . . . Parts Melted 2 | 2 . . . . . . . . . Heat Transferred 938 | 629 . . . . . . 309 . . Parts Sabotaged . | . . . . . . . . . . Parts Stolen . | . . . . . . . . . . Parts Stripped . | . . . . . . . . . . Power Chain Reactions 1 | . . . . . . . 1 . . Alert | -11 -10 -10 -9 -9 -9 -8 -8 -8 -7 ------- Run | Yrd Mat Min Mat Min Exi Min Mat Gar Fac Maximum Alert Level 4 | . . . 2 1 . . . 4 3 Low Security (%) 70 | 100 100 100 45 70 . 100 100 15 . Level 1 8 | . . . 30 29 . . . 1 . Level 2 10 | . . . 24 . . . . 31 . Level 3 5 | . . . . . . . . 27 100 Level 4 4 | . . . . . . . . 23 . Level 5 . | . . . . . . . . . . High Security . | . . . . . . . . . . Max Security . | . . . . . . . . . . Peak Influence 1441 | 20 171 33 601 264 . 115 116 1441 756 Initial 756 | . 6 33 . 229 . . . 94 756 Average 215 | 2 54 1 236 181 . 18 10 731 751 Influence Increases 4123 | 40 576 . 1071 300 . 261 368 1507 . Destroy 0b10 Robot/C 2260 | . 300 . 640 240 . 200 200 680 . Destroy 0b10 Robot/NC 255 | 40 90 . 85 5 . 15 20 . . Destroy Leader 384 | . 70 . 150 40 . 40 54 30 . Allied During Kill 39 | . . . . . . 3 . 36 . Successful Hack 67 | . 20 . 33 . . . 14 . . Disable Machine 105 | . . . 75 15 . . 15 . . Anti-Garrison Action 700 | . . . . . . . . 700 . Destroy Structure 148 | . 51 . 43 . . 3 50 1 . Lose Combat Pursuer 165 | . 45 . 45 . . . 15 60 . Influence Decreases 3377 | 30 499 87 483 757 131 261 222 212 695 Entered New Map 1285 | . 4 54 . 359 131 . . 52 685 Time Decay 1868 | 30 465 33 483 398 . 251 198 . 10 Lost Part 164 | . 30 . . . . 10 24 100 . Lost Ally 60 | . . . . . . . . 60 . Squads Dispatched 10 | . 2 . 3 . . . 3 . 2 Investigation 6 | . 2 . 1 . . . 2 . 1 Extermination . | . . . . . . . . . . Reinforcement 1 | . . . 1 . . . . . . Assault 1 | . . . 1 . . . . . . Garrison 2 | . . . . . . . 1 . 1 Intercept . | . . . . . . . . . . Searches Triggered . | . . . . . . . . . . Construction Impeded . | . . . . . . . . . . Haulers Reinforced . | . . . . . . . . . . Active Scanning Responses . | . . . . . . . . . . Cargo Convoy Interrupts . | . . . . . . . . . . Stealth | -11 -10 -10 -9 -9 -9 -8 -8 -8 -7 --------- Run | Yrd Mat Min Mat Min Exi Min Mat Gar Fac Distress Signals 8 | . 5 . 2 . . . 1 . . Communications Jammed . | . . . . . . . . . . Distress Signals . | . . . . . . . . . . Times Spotted 160 | . 27 . 47 13 14 7 17 34 1 Peak Tracking Total 9 | . 6 . 5 3 9 3 3 8 1 Tactical Retreats 9 | . 1 . 3 . 1 . 1 3 . Traps | -11 -10 -10 -9 -9 -9 -8 -8 -8 -7 ------- Run | Yrd Mat Min Mat Min Exi Min Mat Gar Fac Traps Triggered 12 | . 2 . 2 . . . 1 7 . Indirectly . | . . . . . . . . . . Trap Hack Attempts . | . . . . . . . . . . Triggered . | . . . . . . . . . . Disarmed . | . . . . . . . . . . Reprogrammed . | . . . . . . . . . . Reused . | . . . . . . . . . . Traps Extracted . | . . . . . . . . . . Installed . | . . . . . . . . . . Triggered . | . . . . . . . . . . Machines | -11 -10 -10 -9 -9 -9 -8 -8 -8 -7 ---------- Run | Yrd Mat Min Mat Min Exi Min Mat Gar Fac Machines Disabled 20 | . . . 5 1 9 . 1 4 . Max in Single Turn 2 | . . . 1 1 2 . 1 1 . Garrison Relay 4 | . . . . . . . . 4 . Machines Repaired . | . . . . . . . . . . Machines Dismantled . | . . . . . . . . . . Machines Sabotaged . | . . . . . . . . . . Overloaded Fab Kills . | . . . . . . . . . . Hacking | -11 -10 -10 -9 -9 -9 -8 -8 -8 -7 --------- Run | Yrd Mat Min Mat Min Exi Min Mat Gar Fac Machines Accessed 27 | . 9 . 8 . 2 1 3 3 1 Terminals 20 | . 7 . 7 . . 1 2 3 . Fabricators . | . . . . . . . . . . Repair Stations 2 | . 1 . 1 . . . . . . Recycling Units 1 | . 1 . . . . . . . . Scanalyzers . | . . . . . . . . . . Garrison Access 2 | . . . . . . . 1 . 1 Total Hacks 61 | . 22 . 23 . 2 3 5 4 2 Successful 30 | . 10 . 12 . 2 2 3 1 . Failed 30 | . 11 . 11 . . 1 2 3 2 Catastrophic 9 | . 2 . 2 . . 1 1 1 2 Database Lockouts 1 | . 1 . . . . . . . . Manual 40 | . 17 . 19 . 1 1 2 . . Terminals 48 | . 17 . 20 . . 3 4 4 . Fabricators . | . . . . . . . . . . Repair Stations 5 | . 2 . 3 . . . . . . Recycling Units 3 | . 3 . . . . . . . . Scanalyzers . | . . . . . . . . . . Garrison Access 3 | . . . . . . . 1 . 2 Terminal Hacks 11 | . 1 . 4 . 2 2 1 1 . Record 1 | . . . . . 1 . . . . Robot Analysis 3 | . 1 . 2 . . . . . . Prototype ID Bank 1 | . . . 1 . . . . . . Open Door 1 | . . . . . . . . 1 . Branch Access Points 2 | . . . 1 . . . 1 . . Investigation Status 1 | . . . . . . 1 . . . Recall Investigation 1 | . . . . . . 1 . . . Proto ID Catalog 1 | . . . . . 1 . . . . Fabricator Hacks . | . . . . . . . . . . Repair Station Hacks 4 | . 2 . 2 . . . . . . Scan Component 2 | . 1 . 1 . . . . . . Repair 2 | . 1 . 1 . . . . . . Recycling Unit Hacks . | . . . . . . . . . . Scanalyzer . | . . . . . . . . . . Garrison Access Hacks 1 | . . . . . . . 1 . . Unlock Access 1 | . . . . . . . 1 . . Unauthorized Hacks 14 | . 7 . 6 . . . 1 . . Terminals 14 | . 7 . 6 . . . 1 . . Botnet 1 | . 1 . . . . . . . . Skim 13 | . 6 . 6 . . . 1 . . Fabricators . | . . . . . . . . . . Repair Stations . | . . . . . . . . . . Recycling Units . | . . . . . . . . . . Scanalyzers . | . . . . . . . . . . Garrison Access . | . . . . . . . . . . Data Cores Recovered 2 | . . . 2 . . . . . . Used 1 | . . . 1 . . . . . . Hacking Detections 18 | . 6 . 6 . . 1 2 2 1 Full Trace Events 4 | . 1 . 1 . . . 1 . 1 Feedback Events . | . . . . . . . . . . Feedback Blocked . | . . . . . . . . . . Robot Schematics Acquired . | . . . . . . . . . . Robots Built . | . . . . . . . . . . Authchips . | . . . . . . . . . . Time . | . . . . . . . . . . Total Robot Build Rating . | . . . . . . . . . . Part Schematics Acquired . | . . . . . . . . . . Parts Built . | . . . . . . . . . . Authchips . | . . . . . . . . . . Time . | . . . . . . . . . . Total Part Build Rating . | . . . . . . . . . . Parts Repaired 2 | . 1 . 1 . . . . . . Time 58 | . 26 . 32 . . . . . . Parts Recycled . | . . . . . . . . . . Recycled Matter . | . . . . . . . . . . Retrieved Matter . | . . . . . . . . . . Retrieved Components . | . . . . . . . . . . Parts Scanalyzed . | . . . . . . . . . . Part Schematics Acquired . | . . . . . . . . . . Parts Damaged . | . . . . . . . . . . Bothacking | -11 -10 -10 -9 -9 -9 -8 -8 -8 -7 ------------ Run | Yrd Mat Min Mat Min Exi Min Mat Gar Fac Used RIF Installer . | . . . . . . . . . . Robots Hacked . | . . . . . . . . . . Non-combat . | . . . . . . . . . . Combat . | . . . . . . . . . . Robot Hacks Applied . | . . . . . . . . . . Relay Couplers Released 14 | . . . . . . . . 14 . Machine Destruction 14 | . . . . . . . . 14 . Fabnet Peak Effective % . | . . . . . . . . . . Robots Rewired 3 | . . . . . . . . 3 . Allies Hacked . | . . . . . . . . . . Hacks Repelled . | . . . . . . . . . . Allies | -11 -10 -10 -9 -9 -9 -8 -8 -8 -7 -------- Run | Yrd Mat Min Mat Min Exi Min Mat Gar Fac Total Allies 3 | . . . . . . . . 3 . Largest Group 3 | . . . . . . . . 3 . Highest-Rated Group 98 | . . . . . . . . 98 . Highest-Rated Ally 39 | . . . . . . . . 39 . Initial Warlord ECA Mod 5 | . . . . . . . . . 5 Total Orders . | . . . . . . . . . . Ally Attacks 44 | . . . . . . 16 . 28 . Total Damage 1126 | . . . . . . 739 . 387 . Kills 12 | . . . . . . 5 . 7 . Allies Corrupted . | . . . . . . . . . . Allies Melted . | . . . . . . . . . . Turrets Deployed 1 | . . . . . . 1 . . . Intel | -11 -10 -10 -9 -9 -9 -8 -8 -8 -7 ------- Run | Yrd Mat Min Mat Min Exi Min Mat Gar Fac Active Infowar (turns) 4701 | 16 2403 970 1309 . 3 . . . . Sensors 1 | . . . . . 1 . . . . Traps 2 | . . . . . 2 . . . . Seismic 4698 | 16 2403 970 1309 . . . . . . Robot Analysis Total 3 | . 1 . 2 . . . . . . Derelict Logs Recovered 3 | . . 2 . 1 . . . . . Drone Launches . | . . . . . . . . . . Drone Recoveries . | . . . . . . . . . . Exploration | -11 -10 -10 -9 -9 -9 -8 -8 -8 -7 ------------- Run | Yrd Mat Min Mat Min Exi Min Mat Gar Fac Turns Passed 16544 | 258 2403 970 2626 940 3575 1595 1678 2463 36 Spaces Moved 7297 | 75 1071 501 1272 514 1994 712 358 790 10 Core 6 | 3 . . . . 1 . . 2 . Treads 6749 | 72 933 501 1272 514 1991 712 358 386 10 Legs 2 | . . . . . 2 . . . . Wheels 138 | . 138 . . . . . . . . Hover 402 | . . . . . . . . 402 . Flight . | . . . . . . . . . . Fastest Speed 50 | 50 110 160 160 160 120 155 236 168 320 Average Speed 178 | 155 154 160 160 160 160 205 236 260 320 Slowest Speed 1850 | 160 240 160 160 160 500 235 236 1850 320 Overloaded Moves . | . . . . . . . . . . Propulsion Burnouts . | . . . . . . . . . . Robots Hopped . | . . . . . . . . . . Potential Cave-ins . | . . . . . . . . . . Cave-ins Triggered . | . . . . . . . . . . Exploration Rate (%) 74 | 6 97 97 92 98 85 98 27 68 . Regions Visited 9 Branch Regions 4 Pre-discovered Areas 4 | . . 2 1 . 1 . . . . Known Exits Taken 5 | . 1 1 1 . . 1 1 . . Unknown Exits Taken 3 | 1 . . . 1 1 . . . . Scrap Searched 3 | . . 1 . 1 . 1 . . . Spaces Dug 19 | . 13 . . . 6 . . . . Terrain Destroyed 164 | . 47 . 38 . 26 . 51 1 1 Melee . | . . . . . . . . . . Projectile 23 | . 9 . 7 . . . 5 1 1 AOE 141 | . 38 . 31 . 26 . 46 . . Terrain Rammed . | . . . . . . . . . . Walls Destroyed . | . . . . . . . . . . Machines Disabled . | . . . . . . . . . . Actions | -11 -10 -10 -9 -9 -9 -8 -8 -8 -7 --------- Run | Yrd Mat Min Mat Min Exi Min Mat Gar Fac Total 10045 | 176 1657 670 1699 587 2241 791 1116 1097 11 Wait 1873 | 72 450 170 269 33 51 39 692 97 . Move 7288 | 74 1070 500 1271 513 1993 711 358 788 10 Hop . | . . . . . . . . . . Pick Up 91 | 4 18 . 19 3 33 5 8 1 . Fast Attach 41 | 7 3 . 4 1 11 1 1 13 . Attach 28 | . 3 . 2 . 10 1 5 7 . Detach 4 | . . . 1 . 2 . . 1 . Swap 66 | 1 10 . 14 4 15 5 13 4 . Drop 92 | . 7 . 24 8 44 3 2 4 . Fire 389 | 18 81 . 76 23 81 21 31 57 1 Melee . | . . . . . . . . . . Ram . | . . . . . . . . . . Kick . | . . . . . . . . . . Crush 43 | . 15 . 15 2 . 5 6 . . Escape Stasis 53 | . . . . . . . . 53 . Rewire 77 | . . . 4 . 1 . . 72 . Trap . | . . . . . . . . . . Miscellaneous . | . . . . . . . . . . Route ------- -11/Scrapyard -10/Materials (discovered 6 exits: *Mat x3 / *Min x2 / *Sub) -10/Mines (discovered 3 exits: *Mat x2 / *Sub) -9/Materials (discovered 4 exits: *Mat x3 / *Min) -9/Mines (discovered 4 exits: *Mat x2 / *Exi / [*Zio]) -9/Exiles (discovered 2 exits: *Min x2) -8/Mines (discovered 2 exits: *Mat x2) -8/Materials -8/Garrison (discovered 2 exits: *Fac x2) -7/Factory History --------- Turn | Location | Event 8 | -11/Scrapyard | Discovered new exit (range 14) 259 | -11/Scrapyard | Entered Materials 302 | -10/Materials | Build established: Mutant 341 | -10/Materials | Discovered new exit (range 15) 850 | -10/Materials | Discovered new exit (range 16) 1118 | -10/Materials | Identified exit to Materials 1164 | -10/Materials | Identified exit to Mines 1182 | -10/Materials | Discovered exit to Mines (range 11) 1202 | -10/Materials | Central database locked down 1224 | -10/Materials | Learned location of 2 exits from Mines 1258 | -10/Materials | Learned 4 Subcaves zone layouts 1274 | -10/Materials | Learned 4 Subcaves zone layouts 1298 | -10/Materials | Learned 4 Recycling zone layouts 2549 | -10/Materials | Repaired Lgt. Treads 2662 | -10/Materials | Entered Mines 2664 | -10/Mines | Identified exit to Subcaves 2666 | -10/Mines | Met a Derelict bent on vengeance 3019 | -10/Mines | Learned location of Zion (-7) 3632 | -10/Mines | Entered Materials 3632 | -9/Materials | Evolved 2 slots: Propulsion x1, Weapon x1 3924 | -9/Materials | Build established: Gunner 4241 | -9/Materials | Identified exit to Mines 4277 | -9/Materials | Discovered new exit (range 4) 5055 | -9/Materials | Learned 2 Storage zone layouts 5088 | -9/Materials | Learned Storage stockpile data 5128 | -9/Materials | Identified exit to Materials 5134 | -9/Materials | Learned Storage emergency access door positions 5135 | -9/Materials | Learned Storage emergency access door positions 5157 | -9/Materials | Learned Storage stockpile data 5182 | -9/Materials | Learned Storage stockpile data 5237 | -9/Materials | Build established: Tank 5498 | -9/Materials | Repaired Imp. Treads 5576 | -9/Materials | Build established: Scavenger-Tank 6032 | -9/Materials | First assault squad dispatched 6258 | -9/Materials | Entered Mines 6259 | -9/Mines | A Derelict revealed a hidden shortcut to a safe place 6328 | -9/Mines | Joined a pair of Derelicts in attacking an 0b10 outpost 6660 | -9/Mines | Build established: Gunner 6670 | -9/Mines | Deemed a non-threat by the Exiles lab entrance 6718 | -9/Mines | Found a damaged Exp. Sensor Array with a note attached 6721 | -9/Mines | Found Prototype Device 6876 | -9/Mines | Discovered exit to Materials (range 10) 6883 | -9/Mines | Received a Rocket Launcher from a helpful Derelict 7192 | -9/Mines | Discovered new exit (range 5) 7198 | -9/Mines | Entered Exiles 7238 | -9/Exiles | Met 8R-AWN 7267 | -9/Exiles | Met EX-HEX 7330 | -9/Exiles | Met EX-DEC 7443 | -9/Exiles | Met EX-BIN 7469 | -9/Exiles | Aligned with FarCom system 7470 | -9/Exiles | Given EX-Vault access code 7510 | -9/Exiles | Opened EX-Vault 7515 | -9/Exiles | Build established: Mutant 7555 | -9/Exiles | Warned to stay clear of 0b10 Research branches 8499 | -9/Exiles | Discovered new exit (range 15) 9051 | -9/Exiles | Attacked by the Exiles 9166 | -9/Exiles | Core integrity fell below 50% 9214 | -9/Exiles | Destroyed 8R-AWN 9244 | -9/Exiles | Lost 6 parts (1p2n3w) 9313 | -9/Exiles | Build established: Gunner 9572 | -9/Exiles | Destroyed EX-BIN 9661 | -9/Exiles | Destroyed EX-DEC 9699 | -9/Exiles | Destroyed EX-HEX 9746 | -9/Exiles | Found Deploy-a-Sentry 9773 | -9/Exiles | Found Prototype Device 9773 | -9/Exiles | Identified System Purifier 9934 | -9/Exiles | Identified Exp. Sensor Array 9958 | -9/Exiles | Found Prototype Ballistic Gun 9958 | -9/Exiles | Identified 8R-AWN's Boregun 9978 | -9/Exiles | Found Prototype Processor 10515 | -9/Exiles | Found Field Lobotomy Kit 10519 | -9/Exiles | Found Firepult 10526 | -9/Exiles | Found AWS/Autocannon 10749 | -9/Exiles | Discovered new exit (range 14) 10773 | -9/Exiles | Stole four prototypes: Firepult, AWS/Autocannon, Field Lobotomy Kit, Deploy-a-Sentry 10773 | -9/Exiles | Entered Mines 10781 | -8/Mines | DAS Turret deployed 10801 | -8/Mines | Build established: Tank 10825 | -8/Mines | Allies destroyed 12-ASH 10891 | -8/Mines | Found a Scrap Suit stashed away for nefarious purposes 10966 | -8/Mines | Core integrity fell below 20% 11543 | -8/Mines | Discovered exit to Materials (range 4) 11969 | -8/Mines | Discovered exit to Materials (range 2) 12368 | -8/Mines | Entered Materials 12368 | -8/Materials | Evolved 2 slots: Propulsion x1, Utility x1 12849 | -8/Materials | Build established: Gunner 13980 | -8/Materials | Garrison activated, responded to threat 14038 | -8/Materials | Identified exit to Garrison 14046 | -8/Materials | Entered Garrison 14150 | -8/Garrison | Triggered checkpoint 14254 | -8/Garrison | Garrison Relay disabled 14402 | -8/Garrison | Triggered checkpoint 14495 | -8/Garrison | Destroyed 11 combat bots 14568 | -8/Garrison | Triggered checkpoint 14772 | -8/Garrison | Discovered new exit (range 10) 14780 | -8/Garrison | Build established: Scavenger-Gunner 14832 | -8/Garrison | Attempted to access garrison exit controls, blocked by remote lockdown 14868 | -8/Garrison | Lost 7 parts (1p4n1u1w) 14938 | -8/Garrison | Triggered checkpoint 14986 | -8/Garrison | Triggered checkpoint 14988 | -8/Garrison | Garrison Relay disabled 15168 | -8/Garrison | Triggered checkpoint 15468 | -8/Garrison | Triggered checkpoint 15519 | -8/Garrison | Garrison Relay disabled 15603 | -8/Garrison | Discovered new exit (range 11) 15756 | -8/Garrison | Triggered checkpoint 15898 | -8/Garrison | Triggered checkpoint 16036 | -8/Garrison | Triggered checkpoint 16080 | -8/Garrison | Lost 3 allies 16509 | -8/Garrison | Entered Factory 16509 | -7/Factory | Evolved 2 slots: Utility x2 16545 | -7/Factory | Self-destructed Last Messages --------------- 16340_ System corrupted: Energy discharge (-66). 16359_ System corrupted: Component data lost. 16382_ E%